bitfinex-derivatives/quotes_BTCF0:USTF0_20240815
["timestamp","ask_amount","ask_price","bid_price","bid_amount"]
[1723757598223,0.48238364,57075.0,57074.0,0.00126271]
[1723757598424,0.48338364,57075.0,57074.0,0.00126271]
[1723757598925,0.47238364,57075.0,57074.0,0.00126271]
[1723757599125,0.48238364,57075.0,57074.0,0.00126271]
[1723757599632,0.55281873,57075.0,57074.0,0.00126271]
[1723757599814,0.48338364,57075.0,57074.0,0.00126271]
[1723757600327,0.69518364,57075.0,57074.0,0.00126271]
[1723757602529,0.69418364,57075.0,57074.0,0.00126271]
[1723757602922,0.68818364,57075.0,57074.0,0.00026271]
[1723757603224,0.68418364,57075.0,57074.0,0.00126271]
[1723757603426,0.69518364,57075.0,57074.0,0.00126271]
[1723757603734,0.68918364,57075.0,57074.0,0.00026271]
[1723757603924,0.69518364,57075.0,57074.0,0.00126271]
[1723757604829,0.68418364,57075.0,57074.0,0.00126271]
[1723757605024,0.69418364,57075.0,57074.0,0.00126271]
[1723757605530,0.75861873,57075.0,57074.0,0.00026271]
[1723757605733,0.76461873,57075.0,57074.0,0.00126271]
[1723757606327,0.75861873,57075.0,57074.0,0.00026271]
[1723757606529,0.68418364,57075.0,57074.0,0.00126271]
[1723757606725,0.71029184,57075.0,57074.0,0.00126271]
[1723757607031,0.06779264,57075.0,57074.0,0.00126271]
[1723757607434,0.06779264,57075.0,57074.0,0.05325763]
[1723757607737,0.06779264,57075.0,57074.0,0.00126271]
[1723757607933,0.06779264,57075.0,57074.0,0.05323895]
[1723757608527,0.06779264,57075.0,57074.0,0.00126271]
[1723757608833,0.06879264,57075.0,57074.0,0.00126271]
[1723757609425,0.06779264,57075.0,57074.0,0.00126271]
[1723757611333,0.420591,57075.0,57074.0,0.52690271]
[1723757611538,0.420591,57075.0,57074.0,0.00126271]
[1723757613230,0.059791,57075.0,57074.0,0.00126271]
[1723757614339,0.059791,57075.0,57074.0,0.07057772]
[1723757614924,0.059791,57075.0,57074.0,0.00126271]
[1723757616131,0.059791,57075.0,57074.0,0.07057772]
[1723757616929,0.059791,57075.0,57074.0,0.07057772]
[1723757617837,0.059791,57075.0,57074.0,0.00126271]
[1723757620035,0.144591,57075.0,57074.0,0.00126271]
[1723757620946,0.144591,57075.0,57074.0,0.05328249]
[1723757621146,0.144591,57075.0,57074.0,0.00126271]
[1723757623548,0.016,57075.0,57074.0,0.00126271]
[1723757626136,0.016,57075.0,57074.0,0.36990201]
[1723757626840,0.016,57075.0,57074.0,0.00910201]
[1723757627139,0.016,57075.0,57074.0,0.00126271]
[1723757627347,0.059791,57075.0,57074.0,0.00126271]
[1723757629145,0.059791,57075.0,57074.0,0.07064663]
[1723757629655,0.059791,57075.0,57074.0,0.00126271]
[1723757631048,0.059791,57075.0,57074.0,0.07064663]
[1723757631348,0.059791,57075.0,57074.0,0.00126271]
[1723757632652,0.144591,57075.0,57074.0,0.00126271]
[1723757632950,0.144591,57075.0,57074.0,0.07064539]
[1723757633139,0.144591,57075.0,57074.0,0.00126271]
[1723757643867,0.21448588,57075.0,57074.0,0.00126271]
[1723757644860,0.144591,57075.0,57074.0,0.00126271]
[1723757647660,0.505391,57075.0,57074.0,0.00126271]
[1723757648260,0.57528588,57075.0,57074.0,0.00126271]
[1723757649283,0.505391,57075.0,57074.0,0.00126271]
[1723757649479,0.21463614,57075.0,57074.0,0.00126271]
[1723757649670,0.144591,57075.0,57074.0,0.00126271]
[1723757650384,0.21463369,57075.0,57074.0,0.00126271]
[1723757650968,0.144591,57075.0,57074.0,0.00126271]
[1723757651374,0.21463309,57075.0,57074.0,0.00126271]
[1723757651775,0.21463299,57075.0,57074.0,0.00126271]
[1723757651976,0.144591,57075.0,57074.0,0.00126271]
[1723757652174,0.144591,57075.0,57074.0,0.07063685]
[1723757653087,0.21463118,57075.0,57074.0,0.00126271]
[1723757654777,0.198382,57075.0,57074.0,0.00126271]
[1723757654980,0.154591,57075.0,57074.0,0.00126271]
[1723757655182,0.144591,57075.0,57074.0,0.00126271]
[1723757656880,0.505391,57075.0,57074.0,0.00126271]
[1723757664879,0.144591,57075.0,57074.0,0.00126271]
[1723757665080,0.21461409,57075.0,57074.0,0.07064176]
[1723757665485,0.36772265,57075.0,57074.0,0.00126271]
[1723757665791,0.297691,57075.0,57074.0,0.00126271]
[1723757665985,0.307691,57075.0,57074.0,0.00126271]
[1723757666183,0.307691,57075.0,57074.0,0.07064176]
[1723757666982,0.307691,57075.0,57074.0,0.00126271]
[1723757667390,0.307691,57075.0,57074.0,0.07064176]
[1723757667891,0.307691,57075.0,57074.0,0.00126271]
[1723757669086,0.307691,57075.0,57068.0,0.08673487]
[1723757669087,0.043795,57069.0,57068.0,0.08673487]
[1723757669289,0.9156,57069.0,57068.0,0.05210223]
[1723757669492,0.043798,57065.0,57064.0,0.05210223]
[1723757669688,0.2448141,57065.0,57064.0,0.05208169]
[1723757669882,0.1600141,57065.0,57064.0,0.05208169]
[1723757670088,0.3324101,57065.0,57064.0,0.05208169]
[1723757670397,0.043801,57061.0,57060.0,0.06946963]
[1723757670598,0.143801,57061.0,57060.0,0.06946963]
[1723757671397,0.143801,57061.0,57059.0,0.06973234]
[1723757671398,0.043802,57060.0,57059.0,0.06973234]
[1723757672899,0.178604,57060.0,57059.0,0.0522931]
[1723757673195,0.704364,57060.0,57059.0,1e-08]
[1723757673396,0.178604,57060.0,57059.0,1e-08]
[1723757674089,0.222406,57060.0,57059.0,1e-08]
[1723757674424,1.148166,57060.0,57059.0,1e-08]
[1723757674589,0.222406,57060.0,57059.0,0.00600001]
[1723757674789,0.043812,57047.0,57046.0,0.05203039]
[1723757674991,0.043814,57045.0,57044.0,0.3608]
[1723757675491,0.043814,57045.0,57044.0,0.41276817]
[1723757676301,0.043814,57045.0,57044.0,0.3608]
[1723757676987,0.0848,57047.0,57041.0,0.15547213]
[1723757676988,0.043815,57043.0,57042.0,0.05196817]
[1723757677393,0.043816,57042.0,57041.0,0.0521403]
[1723757677590,0.043816,57042.0,57041.0,0.00017213]
[1723757679210,0.049816,57042.0,57041.0,0.00017213]
[1723757679391,0.410616,57042.0,57041.0,0.00017213]
[1723757679699,0.409616,57042.0,57041.0,0.00017213]
[1723757680092,0.417616,57042.0,57041.0,0.00117213]
[1723757680690,0.461432,57042.0,57041.0,0.00117213]
[1723757681098,0.463432,57042.0,57041.0,0.00117213]
[1723757681292,0.455432,57042.0,57041.0,0.00017213]
[1723757681496,0.104632,57042.0,57041.0,0.00117213]
[1723757681692,0.464432,57042.0,57041.0,0.00117213]
[1723757681898,0.103632,57042.0,57041.0,0.00117213]
[1723757682290,0.468432,57042.0,57041.0,0.00117213]
[1723757682692,0.458432,57042.0,57041.0,0.00117213]
[1723757682999,0.467432,57042.0,57041.0,0.00117213]
[1723757683192,0.019,57042.0,57041.0,1.28789213]
[1723757683390,0.0848,57047.0,57041.0,1.37269213]
[1723757683592,0.0848,57047.0,57046.0,0.3608]
[1723757683889,0.0848,57047.0,57046.0,0.88668]
[1723757684095,0.0848,57047.0,57046.0,1.28668]
[1723757684290,0.043808,57052.0,57046.0,1.28668]
[1723757684499,0.0848,57048.0,57047.0,0.1624]
[1723757684901,0.0848,57048.0,57047.0,0.68828]
[1723757685494,0.0848,57048.0,57047.0,0.1624]
[1723757685897,0.043809,57051.0,57047.0,0.68828]
[1723757686097,0.08506271,57050.0,57047.0,0.1624]
[1723757687298,0.08506271,57050.0,57048.0,0.52588]
[1723757687497,0.08606271,57050.0,57048.0,0.52588]
[1723757687697,0.08606271,57050.0,57049.0,0.52588]
[1723757688098,0.08606271,57050.0,57049.0,0.92588]
[1723757688408,0.08606271,57050.0,57049.0,1.28664]
[1723757688598,0.08506271,57050.0,57049.0,1.28664]
[1723757688798,0.08606271,57050.0,57049.0,1.28664]
[1723757689308,0.08606271,57050.0,57049.0,1.29264]
[1723757690397,0.08606271,57050.0,57049.0,1.29664]
[1723757691310,0.08606271,57050.0,57049.0,0.89564]
[1723757692405,0.00126271,57050.0,57049.0,1.37444]
[1723757692610,0.043791,57075.0,57055.0,0.043805]
[1723757692905,0.0848,57062.0,57060.0,0.05180834]
[1723757693101,0.0848,57062.0,57061.0,0.3608]
[1723757694197,0.0848,57062.0,57061.0,0.41260834]
[1723757694695,0.0888,57062.0,57061.0,0.3618]
[1723757695306,0.0888,57062.0,57061.0,0.41360834]
[1723757695807,0.0898,57062.0,57061.0,0.41360834]
[1723757696109,0.0868,57062.0,57061.0,0.41260834]
[1723757696295,0.131601,57062.0,57061.0,0.05184768]
[1723757696501,0.131601,57062.0,57056.0,0.00026295]
[1723757696502,0.043803,57059.0,57056.0,0.00026295]
[1723757696807,0.128604,57057.0,57056.0,0.00026295]
[1723757697802,0.128604,57057.0,57056.0,0.00226295]
[1723757698901,0.128604,57057.0,57056.0,0.00326295]
[1723757699205,0.043804,57057.0,57056.0,0.00326295]
[1723757699511,0.128604,57057.0,57056.0,0.00326295]
[1723757700107,0.1371618,57057.0,57056.0,0.00326295]
[1723757700504,0.1371618,57057.0,57056.0,0.00126295]
[1723757700807,0.1401618,57057.0,57056.0,0.00026295]
[1723757700995,0.1411618,57057.0,57056.0,0.00026295]
[1723757701404,0.1401618,57057.0,57056.0,0.00026295]
[1723757701606,0.1421618,57057.0,57056.0,0.00026295]
[1723757702007,0.1401618,57057.0,57056.0,0.00026295]
[1723757702209,0.1431618,57057.0,57056.0,0.00026295]
[1723757703407,0.1441618,57057.0,57056.0,0.00026295]
[1723757704212,0.1411618,57057.0,57056.0,0.00026295]
[1723757704503,0.1441618,57057.0,57056.0,0.00026295]
[1723757705001,0.1451618,57057.0,57056.0,0.00026295]
[1723757706510,0.1411618,57057.0,57056.0,0.00026295]
[1723757706705,0.1451618,57057.0,57056.0,0.00026295]
[1723757708810,0.0563618,57057.0,57056.0,0.00026295]
[1723757709013,0.1451618,57057.0,57056.0,0.00026295]
[1723757709714,0.1451618,57057.0,57056.0,0.00126295]
[1723757710714,0.1411618,57057.0,57056.0,0.00026295]
[1723757710915,0.1451618,57057.0,57056.0,0.00026295]
[1723757711306,0.1411618,57057.0,57056.0,0.00026295]
[1723757711513,0.1451618,57057.0,57056.0,0.00026295]
[1723757711709,0.051804,57057.0,57056.0,0.00026295]
[1723757712013,0.136604,57057.0,57056.0,0.00026295]
[1723757712218,0.136604,57057.0,57056.0,0.05211063]
[1723757712428,0.136604,57057.0,57056.0,0.00026295]
[1723757713306,0.134604,57057.0,57056.0,0.00026295]
[1723757714324,0.130604,57057.0,57056.0,0.06934074]
[1723757714513,0.131604,57057.0,57056.0,0.06934074]
[1723757715215,0.131604,57057.0,57056.0,0.00026295]
[1723757715521,0.131604,57057.0,57056.0,0.06934074]
[1723757716415,0.131604,57057.0,57056.0,0.00026295]
[1723757716622,0.131604,57057.0,57056.0,0.06960129]
[1723757717623,0.0878,57057.0,57056.0,0.00026295]
[1723757718824,0.0878,57057.0,57056.0,0.52606295]
[1723757718825,0.003,57057.0,57056.0,0.52606295]
[1723757719022,0.003,57057.0,57056.0,0.00026295]
[1723757719023,0.0878,57057.0,57056.0,0.00026295]
[1723757719322,0.0878,57057.0,57056.0,0.08661019]
[1723757719510,0.0858,57057.0,57056.0,0.22005984]
[1723757719710,0.0878,57057.0,57056.0,0.22005984]
[1723757719927,0.0878,57057.0,57056.0,0.30485984]
[1723757719928,0.002,57057.0,57056.0,0.30485984]
[1723757720118,0.003,57057.0,57056.0,0.2185126]
[1723757720325,0.001,57057.0,57056.0,0.2215126]
[1723757720521,0.00841202,57064.0,57056.0,0.1805176]
[1723757720713,0.043798,57066.0,57062.0,0.06932174]
[1723757720919,0.00026295,57067.0,57064.0,0.06932174]
[1723757721115,0.0848,57065.0,57061.0,0.13045318]
[1723757721317,0.0848,57062.0,57061.0,0.13042683]
[1723757721519,0.0848,57062.0,57061.0,0.26386276]
[1723757723323,0.001,57065.0,57064.0,0.043799]
[1723757723526,0.001,57065.0,57064.0,0.26203529]
[1723757723720,0.00026295,57067.0,57066.0,0.043798]
[1723757723917,0.00026295,57067.0,57066.0,0.53803429]
[1723757724325,0.00026295,57067.0,57066.0,0.69779841]
[1723757724717,0.00026295,57067.0,57066.0,0.61123429]
[1723757724922,0.00426295,57067.0,57066.0,0.61222033]
[1723757725319,0.00426295,57067.0,57066.0,0.44833663]
[1723757725631,0.10116295,57067.0,57066.0,0.3618]
[1723757726131,0.10116295,57067.0,57066.0,0.43105112]
[1723757726533,0.10816295,57067.0,57066.0,0.43105112]
[1723757727324,0.10816295,57067.0,57066.0,0.3618]
[1723757728131,0.01126295,57067.0,57066.0,0.4748259]
[1723757728430,0.00824887,57072.0,57067.0,0.043797]
[1723757728736,0.1352,57075.0,57071.0,0.3608]
[1723757728925,0.1352,57075.0,57074.0,0.05189936]
[1723757729730,0.1352,57075.0,57073.0,0.05189936]
[1723757730126,0.1492,57075.0,57073.0,0.05189936]
[1723757730330,0.1492,57075.0,57072.0,0.05189936]
[1723757730531,0.0969,57073.0,57072.0,0.05189936]
[1723757731936,0.0969,57073.0,57072.0,0.05289936]
[1723757733027,0.0969,57073.0,57072.0,0.001]
[1723757733333,0.1089,57073.0,57072.0,0.002]
[1723757734542,0.1089,57073.0,57072.0,0.05389936]
[1723757735226,0.1089,57073.0,57072.0,0.002]
[1723757735421,0.014,57075.0,57072.0,0.002]
[1723757735627,0.014,57075.0,57074.0,0.52690474]
[1723757735831,0.014,57075.0,57074.0,0.4577]
[1723757736738,0.09716295,57080.0,57074.0,0.4577]
[1723757737042,0.09716295,57080.0,57079.0,0.41258447]
[1723757738241,0.09716295,57080.0,57079.0,0.41358447]
[1723757738737,0.00026295,57080.0,57079.0,0.4587]
[1723757739036,0.00026295,57080.0,57079.0,0.59637247]
[1723757739231,0.00026295,57080.0,57079.0,0.447688]
[1723757739531,0.00026295,57080.0,57079.0,0.50893381]
[1723757739740,0.00026295,57080.0,57079.0,0.45717358]
[1723757740029,0.00026295,57080.0,57079.0,0.37128558]
[1723757740235,0.24026295,57080.0,57079.0,0.3628]
[1723757742026,0.24026295,57080.0,57079.0,0.002]
[1723757744132,0.24026295,57080.0,57079.0,0.41456148]
[1723757744531,0.24026295,57080.0,57079.0,0.3628]
[1723757744838,0.00026295,57080.0,57079.0,0.3628]
[1723757746836,0.00026295,57080.0,57079.0,0.41456832]
[1723757747238,0.00026295,57080.0,57079.0,0.3628]
[1723757750232,0.00026295,57080.0,57079.0,0.43184596]
[1723757750437,0.00026295,57080.0,57079.0,0.3628]
[1723757756537,0.09716295,57080.0,57079.0,0.3628]
[1723757758834,0.09716295,57080.0,57079.0,0.002]
[1723757759143,0.09716295,57080.0,57079.0,0.07120148]
[1723757759334,0.09716295,57080.0,57079.0,0.002]
[1723757762038,0.09716295,57080.0,57079.0,0.07121463]
[1723757762245,0.09716295,57080.0,57079.0,0.002]
[1723757765943,0.14094995,57080.0,57079.0,0.002]
[1723757766738,0.50174995,57080.0,57079.0,0.002]
[1723757767139,0.50174995,57080.0,57079.0,0.05390418]
[1723757767445,0.50174995,57080.0,57079.0,0.002]
[1723757767647,0.14094995,57080.0,57079.0,0.05388374]
[1723757767847,0.14094995,57080.0,57079.0,0.002]
[1723757768251,0.14965236,57080.0,57079.0,0.002]
[1723757768552,1.43605236,57080.0,57077.0,0.05188365]
[1723757768752,0.043789,57077.0,57076.0,0.05188365]
[1723757769053,0.04379,57076.0,57075.0,0.05188365]
[1723757769237,0.26739,57076.0,57075.0,0.05188365]
[1723757769742,0.043794,57071.0,57070.0,0.05186417]
[1723757770049,0.3608,57071.0,57069.0,0.00026295]
[1723757770247,0.381494,57070.0,57069.0,0.00026295]
[1723757770449,0.45141149,57070.0,57069.0,0.00026295]
[1723757770644,0.97709149,57070.0,57069.0,0.00026295]
[1723757771143,1.33329749,57070.0,57061.0,0.05186417]
[1723757771442,1.33329749,57070.0,57056.0,0.3608]
[1723757771443,0.043803,57059.0,57056.0,0.3608]
[1723757771651,0.2383,57058.0,57056.0,0.3608]
[1723757772842,0.2383,57058.0,57056.0,0.3628]
[1723757773649,0.2383,57058.0,57056.0,0.002]
[1723757774051,0.24681815,57058.0,57056.0,0.002]
[1723757774549,0.1237,57057.0,57054.0,0.00866014]
[1723757774744,0.1237,57057.0,57051.0,0.00026295]
[1723757774745,0.0969,57055.0,57051.0,0.00026295]
[1723757775052,0.1237,57057.0,57051.0,0.00026295]
[1723757775252,0.0969,57053.0,57051.0,0.00026295]
[1723757777248,0.0979,57053.0,57051.0,0.00026295]
[1723757777658,0.0979,57053.0,57051.0,0.00426295]
[1723757786559,0.0979,57053.0,57051.0,0.05612712]
[1723757787060,0.001,57053.0,57052.0,0.0969]
[1723757787468,0.001,57053.0,57052.0,0.14876417]
[1723757787665,0.001,57053.0,57052.0,0.0969]
[1723757788158,0.001,57053.0,57052.0,0.14876417]
[1723757788358,0.0969,57055.0,57052.0,0.05186417]
[1723757788552,0.001,57053.0,57052.0,0.05672211]
[1723757788953,0.001,57053.0,57052.0,0.05671511]
[1723757789153,0.001,57053.0,57052.0,0.005]
[1723757789456,0.0969,57055.0,57051.0,0.00426295]
[1723757789646,0.001,57055.0,57054.0,0.3608]
[1723757790048,0.043805,57056.0,57054.0,0.3608]
[1723757791659,0.043805,57056.0,57054.0,0.3638]
[1723757791854,0.0969,57055.0,57054.0,0.3638]
[1723757792260,0.0969,57055.0,57054.0,0.3608]
[1723757792456,0.0969,57055.0,57054.0,0.3638]
[1723757792858,0.0969,57055.0,57054.0,0.3608]
[1723757793059,0.0969,57055.0,57054.0,0.3638]
[1723757793666,0.0969,57055.0,57054.0,0.41553302]
[1723757794458,0.0969,57055.0,57054.0,0.3638]
[1723757799567,0.0969,57055.0,57054.0,0.49726182]
[1723757801971,0.0969,57055.0,57054.0,0.13646182]
[1723757802272,0.0969,57055.0,57054.0,0.49726182]
[1723757804571,0.0969,57055.0,57054.0,0.13646182]
[1723757804773,0.0969,57055.0,57054.0,0.49726182]
[1723757807479,0.0969,57055.0,57054.0,0.13646182]
[1723757807669,0.0969,57055.0,57054.0,0.49726182]
[1723757808076,0.0969,57055.0,57054.0,0.49726181]
[1723757808771,0.0969,57055.0,57054.0,0.13646181]
[1723757808967,0.0969,57055.0,57054.0,0.49726181]
[1723757818675,0.043805,57056.0,57054.0,0.49726181]
[1723757818876,0.043805,57056.0,57055.0,0.13346181]
[1723757819185,0.140705,57056.0,57055.0,0.13346181]
[1723757819406,0.230705,57056.0,57055.0,0.05202272]
[1723757819680,0.230705,57056.0,57054.0,0.003]
[1723757819879,0.08756332,57055.0,57054.0,0.003]
[1723757820376,0.22826832,57056.0,57054.0,0.003]
[1723757821174,0.043805,57056.0,57054.0,0.003]
[1723757821378,0.0969,57055.0,57054.0,0.003]
[1723757821582,0.16692578,57055.0,57054.0,0.003]
[1723757822483,0.21073178,57055.0,57054.0,0.003]
[1723757822680,0.043807,57054.0,57052.0,0.05202272]
[1723757822880,0.043808,57053.0,57052.0,0.05202272]
[1723757823277,0.043808,57053.0,57051.0,0.00026295]
[1723757823278,0.043808,57053.0,57051.0,0.05228567]
[1723757823586,0.0969,57052.0,57051.0,0.05219456]
[1723757823789,0.0969,57052.0,57051.0,0.00026295]
[1723757825484,0.0979,57052.0,57051.0,0.00626295]
[1723757825890,0.0979,57052.0,57051.0,0.01026295]
[1723757826086,0.0979,57052.0,57051.0,0.07962658]
[1723757826490,0.0979,57052.0,57051.0,0.01026295]
[1723757826788,0.141708,57052.0,57051.0,0.01026295]
[1723757827087,0.15046446,57052.0,57051.0,0.01026295]
[1723757837102,0.141708,57052.0,57051.0,0.01026295]
[1723757837601,0.044808,57052.0,57051.0,0.01026295]
[1723757837808,0.141708,57052.0,57051.0,0.01026295]
[1723757838192,0.141708,57052.0,57051.0,0.07962658]
[1723757840201,0.141708,57052.0,57051.0,0.01026295]
[1723757840400,0.044808,57052.0,57051.0,0.07949215]
[1723757840605,0.141708,57052.0,57051.0,0.01026295]
[1723757853609,0.044808,57052.0,57051.0,0.01026295]
[1723757853807,0.141708,57052.0,57051.0,0.01026295]
[1723757855112,0.044808,57052.0,57051.0,0.01026295]
[1723757855310,0.141708,57052.0,57051.0,0.01026295]
[1723757859905,0.1209,57058.0,57051.0,0.14373449]
[1723757860113,0.1209,57058.0,57057.0,0.3608]
[1723757860314,0.1209,57058.0,57057.0,0.49427154]
[1723757861299,0.1209,57058.0,57057.0,0.58081563]
[1723757862014,0.2188,57058.0,57057.0,0.58081563]
[1723757862207,0.2188,57058.0,57057.0,0.58079403]
[1723757862433,0.2178,57058.0,57057.0,0.58079403]
[1723757862605,0.2218,57058.0,57057.0,0.58079403]
[1723757862804,0.2218,57058.0,57057.0,0.49427154]
[1723757863407,0.043794,57071.0,57057.0,0.50308739]
[1723757863716,0.1164,57070.0,57062.0,0.3608]
[1723757865004,0.00326295,57063.0,57062.0,0.3608]
[1723757865205,0.00426295,57063.0,57062.0,0.3608]
[1723757865616,0.00126295,57063.0,57062.0,0.42991266]
[1723757865812,0.01526295,57063.0,57062.0,0.3628]
[1723757866016,0.3608,57076.0,57062.0,0.3628]
[1723757866017,0.07002578,57078.0,57062.0,1.75530869]
[1723757866208,0.1163,57078.0,57076.0,0.05175147]
[1723757866416,0.0969,57077.0,57075.0,0.06907934]
[1723757866614,0.0969,57077.0,57073.0,0.81038918]
[1723757866810,0.0969,57077.0,57073.0,1.33358918]
[1723757867216,0.0969,57077.0,57075.0,0.06892764]
[1723757867523,0.116,57091.0,57075.0,0.06892764]
[1723757867524,9.1e-07,57123.0,57101.0,0.8481]
[1723757867716,0.0969,57136.0,57129.0,0.043749]
[1723757868020,0.42516754,57142.0,57135.0,0.41233718]
[1723757868315,0.42516754,57142.0,57135.0,0.3608]
[1723757869309,0.43616754,57142.0,57135.0,0.3618]
[1723757869509,0.0969,57136.0,57135.0,0.3618]
[1723757869911,0.6137,57142.0,57135.0,0.3628]
[1723757870103,0.67806754,57142.0,57135.0,0.3628]
[1723757871116,0.67806754,57142.0,57135.0,0.002]
[1723757871117,0.68695719,57142.0,57135.0,0.002]
[1723757871508,0.002,57136.0,57135.0,0.002]
[1723757871909,0.012,57136.0,57135.0,0.002]
[1723757872308,0.01,57136.0,57135.0,0.002]
[1723757872617,0.2419,57140.0,57135.0,0.002]
[1723757872820,0.30626754,57140.0,57135.0,0.002]
[1723757873024,0.30626754,57140.0,57135.0,0.001]
[1723757873220,0.37168965,57142.0,57135.0,0.001]
[1723757873221,0.005,57136.0,57135.0,0.3628]
[1723757873420,0.005,57136.0,57135.0,0.7236]
[1723757873619,0.005,57136.0,57135.0,1.64868]
[1723757874329,0.007,57136.0,57135.0,1.64868]
[1723757874617,0.002,57136.0,57135.0,1.64868]
[1723757875025,0.002,57136.0,57135.0,1.24868]
[1723757875219,0.013,57136.0,57135.0,1.64868]
[1723757875923,0.013,57136.0,57135.0,1.24868]
[1723757876125,0.013,57136.0,57135.0,1.64868]
[1723757876423,0.013,57136.0,57135.0,1.24868]
[1723757876616,0.013,57136.0,57135.0,1.64868]
[1723757877011,0.013,57136.0,57135.0,0.7236]
[1723757877215,0.013,57136.0,57135.0,0.3628]
[1723757881317,0.012,57136.0,57135.0,0.3628]
[1723757882627,0.011,57136.0,57135.0,0.3628]
[1723757883216,0.011,57136.0,57135.0,0.5228]
[1723757883414,0.011,57136.0,57135.0,0.3628]
[1723757885229,0.011,57136.0,57135.0,0.88788]
[1723757885631,0.011,57136.0,57135.0,0.3628]
[1723757886224,0.1153,57137.0,57135.0,0.3628]
[1723757887325,0.17966754,57137.0,57135.0,0.3628]
[1723757887533,0.18166754,57137.0,57135.0,0.3628]
[1723757888133,0.22541054,57137.0,57135.0,0.3628]
[1723757888326,0.18166754,57137.0,57135.0,0.3628]
[1723757888523,0.1193,57137.0,57135.0,0.3628]
[1723757889127,0.1193,57137.0,57135.0,0.7236]
[1723757889527,0.05804692,57137.0,57135.0,0.7236]
[1723757890440,0.004,57137.0,57135.0,0.7236]
[1723757890936,0.004,57137.0,57135.0,0.767344]
[1723757891528,0.004,57137.0,57135.0,0.7236]
[1723757893439,0.12841596,57143.0,57135.0,0.7236]
[1723757893639,0.06436754,57143.0,57135.0,0.7236]
[1723757893842,0.06436754,57143.0,57142.0,0.3608]
[1723757894339,0.00026271,57144.0,57142.0,0.3608]
[1723757894539,0.06463025,57144.0,57142.0,0.3608]
[1723757895148,0.10836825,57144.0,57142.0,0.3608]
[1723757895438,0.00026271,57144.0,57143.0,0.05153447]
[1723757895637,0.00026271,57144.0,57142.0,0.3608]
[1723757895939,0.04500071,57144.0,57142.0,0.3608]
[1723757896140,0.10936825,57144.0,57142.0,0.36976055]
[1723757896642,0.1119,57143.0,57142.0,0.36976055]
[1723757897335,0.1119,57143.0,57142.0,0.66522305]
[1723757897539,0.00126271,57144.0,57142.0,0.49406109]
[1723757897845,0.00126271,57144.0,57143.0,0.23661237]
[1723757898240,0.00026271,57144.0,57143.0,0.23663205]
[1723757898540,0.00026271,57144.0,57143.0,0.29546401]
[1723757898740,0.00026271,57144.0,57143.0,0.82046401]
[1723757898933,0.00026271,57144.0,57143.0,0.29546401]
[1723757899837,0.00026271,57144.0,57143.0,0.98046401]
[1723757900045,0.00026271,57144.0,57143.0,0.82046401]
[1723757900228,0.00026271,57144.0,57143.0,0.98046401]
[1723757900635,0.00026271,57144.0,57143.0,1.65273929]
[1723757900937,0.00026271,57144.0,57143.0,1.93338099]
[1723757901143,0.00026271,57144.0,57143.0,1.58878099]
[1723757901337,0.1143,57154.0,57143.0,2.17007133]
[1723757901538,0.17866754,57154.0,57153.0,0.3608]
[1723757901746,0.1143,57154.0,57153.0,0.65626401]
[1723757902335,0.1143,57154.0,57153.0,0.65621238]
[1723757903942,0.1143,57154.0,57153.0,0.65721238]
[1723757904141,0.41716754,57176.0,57153.0,1.18800214]
[1723757904341,0.043698,57197.0,57153.0,1.18800214]
[1723757904342,0.3608,57188.0,57175.0,0.3608]
[1723757904542,0.3608,57188.0,57184.0,0.043707]
[1723757904731,0.3608,57188.0,57185.0,0.21906757]
[1723757904732,0.42516754,57188.0,57185.0,0.21906757]
[1723757904937,0.42516754,57188.0,57186.0,0.08589334]
[1723757904938,0.06436754,57188.0,57186.0,0.08589334]
[1723757905237,0.06436754,57188.0,57186.0,0.06854585]
[1723757906239,0.06436754,57188.0,57185.0,0.05233827]
[1723757906544,0.06436754,57188.0,57186.0,0.001]
[1723757906545,0.568305,57187.0,57186.0,0.001]
[1723757906842,0.9246,57187.0,57182.0,0.03831533]
[1723757907143,0.4134511,57190.0,57175.0,0.3608]
[1723757907144,0.043703,57189.0,57175.0,0.3608]
[1723757907336,0.043705,57187.0,57186.0,0.001]
[1723757907535,0.043713,57176.0,57175.0,0.3608]
[1723757908639,0.044713,57176.0,57175.0,0.3608]
[1723757912446,0.6027,57190.0,57175.0,0.3608]
[1723757912447,4e-05,57207.0,57176.0,0.52468]
[1723757912648,0.1141,57199.0,57198.0,0.3608]
[1723757912836,0.2301,57206.0,57198.0,0.3608]
[1723757913042,0.1141,57205.0,57203.0,0.3608]
[1723757913240,4e-05,57207.0,57203.0,0.37356557]
[1723757913546,4e-05,57207.0,57205.0,0.3608]
[1723757914648,4e-05,57207.0,57205.0,0.37356557]
[1723757914846,4e-05,57207.0,57205.0,0.41925657]
[1723757915251,4e-05,57207.0,57206.0,0.2419]
[1723757915440,4e-05,57207.0,57206.0,0.25466557]
[1723757916338,0.3608,57243.0,57223.0,0.043677]
[1723757916537,0.6508,57243.0,57230.0,0.3608]
[1723757916748,0.043669,57234.0,57230.0,0.3608]
[1723757916950,0.52416,57242.0,57230.0,0.3608]
[1723757917151,0.119,57233.0,57223.0,0.3608]
[1723757917451,0.1199,57232.0,57223.0,0.3608]
[1723757917650,0.4807,57232.0,57223.0,0.3608]
[1723757917841,0.043671,57231.0,57230.0,0.001]
[1723757918246,0.967871,57231.0,57230.0,0.001]
[1723757918548,0.9242,57231.0,57223.0,0.3618]
[1723757918847,0.043675,57226.0,57223.0,0.3618]
[1723757919048,0.043675,57226.0,57223.0,0.3608]
[1723757919649,0.043674,57228.0,57223.0,0.3608]
[1723757919858,0.1203,57230.0,57223.0,0.3608]
[1723757920073,0.043673,57229.0,57228.0,0.3608]
[1723757920752,0.567873,57229.0,57223.0,0.3628]
[1723757920954,0.043673,57229.0,57223.0,0.3628]
[1723757921152,0.043673,57229.0,57228.0,0.001]
[1723757921550,0.043673,57229.0,57228.0,0.002]
[1723757922153,0.043673,57229.0,57228.0,0.001]
[1723757922742,0.043673,57229.0,57228.0,0.3618]
[1723757923860,0.1203,57230.0,57228.0,0.3628]
[1723757924249,0.043673,57229.0,57228.0,0.3628]